bitfinex-derivatives/quotes_BNBF0:USTF0_20250507
["timestamp","ask_amount","ask_price","bid_price","bid_amount"]
[1746649911364,1.01016311,598.61,597.9,4.38150409]
[1746649911868,1.01016311,598.6,597.9,4.38150409]
[1746649912565,1.01016311,598.59,597.9,4.38150409]
[1746649913061,1.01016311,598.58,597.9,4.38150409]
[1746649913666,0.2908398,598.82,597.9,4.38150409]
[1746649913862,1.27155552,598.81,597.9,4.38150409]
[1746649914061,1.27155552,598.8,597.9,4.38150409]
[1746649914264,1.27155552,598.79,597.9,4.38150409]
[1746649914461,1.27155552,598.78,597.9,4.38150409]
[1746649914665,1.27155552,598.77,597.9,4.38150409]
[1746649914862,1.27155552,598.76,597.9,4.38150409]
[1746649915063,1.27196747,598.75,597.9,4.38150409]
[1746649915266,1.27196747,598.74,597.9,4.38150409]
[1746649915565,2.28283574,598.73,597.9,4.38150409]
[1746649915768,1.27200113,598.72,597.9,4.38150409]
[1746649916069,1.27200113,598.71,597.9,4.38150409]
[1746649916364,2.28283574,598.7,597.9,4.38150409]
[1746649916569,1.27200113,598.69,597.9,4.38150409]
[1746649916869,1.27200113,598.68,597.9,4.38150409]
[1746649917168,1.27200113,598.67,597.9,4.38150409]
[1746649917363,1.27200113,598.66,597.9,4.38150409]
[1746649917562,2.28283574,598.65,597.9,4.38150409]
[1746649917762,1.27200113,598.64,597.9,4.38150409]
[1746649917967,1.27200113,598.63,597.9,4.38150409]
[1746649918273,2.28283574,598.62,597.9,4.38150409]
[1746649918567,2.28283574,598.61,597.9,4.38150409]
[1746649918769,1.01083461,598.61,597.9,4.38150409]
[1746649919068,1.01083461,598.6,597.9,4.38150409]
[1746649919367,1.01083461,598.59,597.9,4.38150409]
[1746649920169,0.29083737,598.82,597.9,4.38150409]
[1746649920362,1.27241441,598.81,597.9,4.38150409]
[1746649920562,1.27241441,598.8,597.9,4.38150409]
[1746649920766,2.28372263,598.79,597.9,4.38150409]
[1746649920963,1.27241441,598.78,597.9,4.38150409]
[1746649921163,1.27241441,598.77,597.9,4.38150409]
[1746649921366,2.28372263,598.76,597.9,4.38150409]
[1746649921566,1.27241441,598.75,597.9,4.38150409]
[1746649921767,2.28372263,598.74,597.9,4.38150409]
[1746649921966,1.27241441,598.73,597.9,4.38150409]
[1746649922167,1.27241441,598.72,597.9,4.38150409]
[1746649922467,2.28372263,598.71,597.9,4.38150409]
[1746649922663,1.27241441,598.7,597.9,4.38150409]
[1746649922862,1.27241441,598.69,597.9,4.38150409]
[1746649923063,2.28372263,598.68,597.9,4.38150409]
[1746649923263,1.27241441,598.67,597.9,4.38150409]
[1746649923464,1.27241441,598.66,597.9,4.38150409]
[1746649923665,1.27241441,598.65,597.9,4.38150409]
[1746649923964,2.28372263,598.64,597.9,4.38150409]
[1746649924269,1.27241441,598.63,597.9,4.38150409]
[1746649924570,2.28518316,598.62,597.9,4.38150409]
[1746649924868,1.01130822,598.61,597.9,4.38150409]
[1746649925174,1.01130822,598.6,597.9,4.38150409]
[1746649925865,1.01130822,598.59,597.9,4.38150409]
[1746649926270,0.29083372,598.83,597.9,4.38150409]
[1746649926469,1.27409051,598.82,597.9,4.38150409]
[1746649926669,2.28669427,598.81,597.9,4.38150409]
[1746649926969,1.27409051,598.8,597.9,4.38150409]
[1746649927169,2.28669427,598.79,597.9,4.38150409]
[1746649927469,2.28669427,598.78,597.9,4.38150409]
[1746649927665,1.27409051,598.77,597.9,4.38150409]
[1746649927864,1.01260376,598.77,597.9,4.38150409]
[1746649928069,1.27407824,598.76,597.9,4.38150409]
[1746649928269,1.27407824,598.75,597.9,4.38150409]
[1746649928570,1.27407824,598.74,597.9,4.38150409]
[1746649928770,2.286682,598.73,597.9,4.38150409]
[1746649928969,2.286682,598.72,597.9,4.38150409]
[1746649929265,1.27407824,598.71,597.9,4.38150409]
[1746649929569,1.27407824,598.7,597.9,4.38150409]
[1746649929765,1.27407824,598.69,597.9,4.38150409]
[1746649930068,2.286682,598.68,597.9,4.38150409]
[1746649930267,2.286682,598.67,597.9,4.38150409]
[1746649930568,2.286682,598.66,597.9,4.38150409]
[1746649930867,1.27407824,598.65,597.9,4.38150409]
[1746649931070,1.27407824,598.64,597.9,4.38150409]
[1746649931269,1.27407824,598.63,597.9,4.38150409]
[1746649931468,2.286682,598.62,597.9,4.38150409]
[1746649931667,1.27407824,598.61,597.9,4.38150409]
[1746649931861,2.286682,598.6,597.9,4.38150409]
[1746649932068,1.27407824,598.59,597.9,4.38150409]
[1746649932264,1.27407824,598.58,597.9,4.38150409]
[1746649932466,1.27407824,598.57,597.9,4.38150409]
[1746649932667,1.27407824,598.56,597.9,4.38150409]
[1746649932868,1.01260376,598.55,597.9,4.38150409]
[1746649933263,1.01260376,598.54,597.9,4.38150409]
[1746649933868,1.01260376,598.53,597.9,4.38150409]
[1746649934664,0.29084345,598.83,597.9,4.38150409]
[1746649934869,1.27477347,598.82,597.9,4.38150409]
[1746649935063,1.27477347,598.81,597.9,4.38150409]
[1746649935269,2.28780978,598.8,597.9,4.38150409]
[1746649935469,1.27477347,598.79,597.9,4.38150409]
[1746649935664,1.27477347,598.78,597.9,4.38150409]
[1746649935869,2.28780978,598.77,597.9,4.38150409]
[1746649936069,2.28780978,598.76,597.9,4.38150409]
[1746649936369,1.27477347,598.75,597.9,4.38150409]
[1746649936669,1.27477347,598.74,597.9,4.38150409]
[1746649936870,1.27477347,598.73,597.9,4.38150409]
[1746649937069,1.27477347,598.72,597.9,4.38150409]
[1746649937365,2.28780978,598.71,597.9,4.38150409]
[1746649937570,1.27329748,598.7,597.9,4.38150409]
[1746649937870,1.27329748,598.69,597.9,4.38150409]
[1746649938069,2.28633379,598.68,597.9,4.38150409]
[1746649938271,1.27329748,598.67,597.9,4.38150409]
[1746649938571,1.27329748,598.66,597.9,4.38150409]
[1746649938874,1.27329748,598.65,597.9,4.38150409]
[1746649939070,1.27329748,598.64,597.9,4.38150409]
[1746649939266,2.28633379,598.63,597.9,4.38150409]
[1746649939467,1.27329748,598.62,597.9,4.38150409]
[1746649939669,2.28633379,598.61,597.9,4.38150409]
[1746649939869,1.27329748,598.6,597.9,4.38150409]
[1746649940070,2.28633379,598.59,597.9,4.38150409]
[1746649940269,1.27329748,598.58,597.9,4.38150409]
[1746649940473,1.27329748,598.57,597.9,4.38150409]
[1746649940667,0.2908556,598.75,597.9,4.38150409]
[1746649940870,1.01279833,598.56,597.9,4.38150409]
[1746649941073,1.27606045,598.55,597.9,4.38150409]
[1746649941273,1.27606045,598.54,597.9,4.38150409]
[1746649941568,1.27606045,598.53,597.9,4.38150409]
[1746649941772,2.28885878,598.52,597.9,4.38150409]
[1746649941969,1.27606045,598.51,597.9,4.38150409]
[1746649942168,1.27606045,598.5,597.9,4.38150409]
[1746649942370,1.01279833,598.49,597.9,4.38150409]
[1746649943171,2.28846731,598.48,597.9,4.38150409]
[1746649943369,1.01279833,598.48,597.9,4.38150409]
[1746649943672,1.01279833,598.47,597.9,4.38150409]
[1746649944174,1.27582709,598.46,597.9,4.38150409]
[1746649944367,1.27562401,598.45,597.9,4.38150409]
[1746649944574,1.01279833,598.44,597.9,4.38150409]
[1746649944771,1.01279833,598.44,597.9,2.39150409]
[1746649944973,1.01279833,598.43,597.9,0.33450409]
[1746649945575,1.01279833,598.42,597.9,0.33450409]
[1746649945971,0.29086897,598.75,597.9,0.33450409]
[1746649946276,0.3338508,599.07,597.9,0.33450409]
[1746649946477,0.29081185,598.74,597.9,0.33450409]
[1746649946776,2.28722288,598.73,597.9,0.33450409]
[1746649947076,1.27465339,598.72,597.9,0.33450409]
[1746649947276,2.28722288,598.71,597.9,0.33450409]
[1746649947471,1.27465339,598.7,597.9,1.36550409]
[1746649947676,1.27465339,598.69,597.9,1.36550409]
[1746649947876,1.27465339,598.68,597.9,1.36550409]
[1746649948078,2.28722288,598.67,597.9,3.27850409]
[1746649948377,1.27447538,598.66,597.9,3.27850409]
[1746649948575,2.28704487,598.65,597.9,3.27850409]
[1746649948777,1.27447538,598.64,597.9,4.46450409]
[1746649949071,2.28704487,598.63,597.9,4.46450409]
[1746649949271,1.27447538,598.62,597.9,4.46450409]
[1746649949476,1.27447538,598.61,597.9,4.46450409]
[1746649949677,1.27521899,598.6,597.9,4.46450409]
[1746649949972,2.28778848,598.59,597.9,4.46450409]
[1746649950177,1.27521899,598.58,597.9,4.46450409]
[1746649950472,1.27521899,598.57,597.9,4.46450409]
[1746649950676,1.27521899,598.56,597.9,4.46450409]
[1746649950874,2.28778848,598.55,597.9,4.46450409]
[1746649951171,1.27521899,598.54,597.9,4.46450409]
[1746649951375,1.27521899,598.53,597.9,4.46450409]
[1746649951576,2.28778848,598.52,597.9,4.46450409]
[1746649951777,1.27521899,598.51,597.9,4.46450409]
[1746649951976,1.27521899,598.5,597.9,4.46450409]
[1746649952175,1.27407378,598.49,597.9,4.46450409]
[1746649952373,1.27407378,598.48,597.9,4.46450409]
[1746649952574,0.3338508,599.07,597.9,4.46450409]
[1746649952575,2.28664327,598.47,597.9,4.46450409]
[1746649952874,1.27407378,598.46,597.9,4.46450409]
[1746649953071,2.28664327,598.45,597.9,4.46450409]
[1746649953274,1.27407378,598.44,597.9,4.46450409]
[1746649953472,1.27407378,598.43,597.9,4.46450409]
[1746649953771,2.28664327,598.42,597.9,4.46450409]
[1746649953970,1.27407378,598.41,597.9,4.46450409]
[1746649954177,1.27407378,598.4,597.9,4.46450409]
[1746649954374,1.01256949,598.42,597.9,4.46450409]
[1746649954577,0.29089815,598.62,597.9,4.46450409]
[1746649954578,2.28386888,598.41,597.9,4.46450409]
[1746649954877,1.01256949,598.41,597.9,4.46450409]
[1746649955077,1.01256949,598.4,597.9,4.46450409]
[1746649955677,1.01256949,598.39,597.9,4.46450409]
[1746649956282,1.01256949,598.38,597.9,4.46450409]
[1746649957080,0.29091031,598.62,597.9,4.46450409]
[1746649957280,1.27060449,598.61,597.9,4.46450409]
[1746649957476,1.27060449,598.6,597.9,4.46450409]
[1746649957679,1.27039133,598.59,597.9,4.46450409]
[1746649957877,1.27039133,598.58,597.9,4.46450409]
[1746649958085,2.2796985,598.57,597.9,4.46450409]
[1746649958282,1.27039133,598.56,597.9,4.46450409]
[1746649958582,2.2796985,598.55,597.9,4.46450409]
[1746649958784,1.27039133,598.54,597.9,4.46450409]
[1746649958983,1.27039133,598.53,597.9,4.46450409]
[1746649959180,1.27039133,598.52,597.9,4.46450409]
[1746649959384,1.27039133,598.51,597.9,4.46450409]
[1746649959684,1.26982734,598.5,597.9,4.46450409]
[1746649959884,1.26982734,598.49,597.9,4.46450409]
[1746649960083,1.26982734,598.48,597.9,4.46450409]
[1746649960284,2.27913451,598.47,597.9,4.46450409]
[1746649960484,1.26982734,598.46,597.9,4.46450409]
[1746649960784,1.26982734,598.45,597.9,4.46450409]
[1746649960986,1.26982734,598.44,597.9,4.46450409]
[1746649961182,2.27913451,598.43,597.9,4.46450409]
[1746649961382,1.00930717,598.43,597.9,4.46450409]
[1746649961787,1.00930717,598.42,597.9,4.46450409]
[1746649962388,1.00930717,598.41,597.9,4.46450409]
[1746649962988,1.00930717,598.4,597.9,4.46450409]
[1746649963688,1.00930717,598.39,597.9,4.46450409]
[1746649964485,1.00930717,598.38,597.9,4.46450409]
[1746649964991,1.00930717,598.37,597.9,4.46450409]
[1746649965592,0.29091395,598.61,597.9,4.46450409]
[1746649965792,1.2682851,598.6,597.9,4.46450409]
[1746649965992,2.2762928,598.59,597.9,4.46450409]
[1746649966188,1.2682851,598.58,597.9,4.46450409]
[1746649966492,1.2682851,598.57,597.9,4.46450409]
[1746649966788,1.2682851,598.56,597.9,4.46450409]
[1746649966990,2.2762928,598.55,597.9,4.46450409]
[1746649967288,1.2682851,598.54,597.9,4.46450409]
[1746649967489,1.2682851,598.53,597.9,4.46450409]
[1746649967792,2.2762928,598.52,597.9,4.46450409]
[1746649967989,1.2682851,598.51,597.9,4.46450409]
[1746649968289,2.2762928,598.5,597.9,4.46450409]
[1746649968492,1.2682851,598.49,597.9,4.46450409]
[1746649968694,2.2762928,598.48,597.9,4.46450409]
[1746649968894,1.2682851,598.47,597.9,4.46450409]
[1746649969086,1.2682851,598.46,597.9,4.46450409]
[1746649969392,1.0080077,598.45,597.9,4.46450409]
[1746649969591,1.0080077,598.45,597.9,3.43350409]
[1746649969789,1.0080077,598.44,597.9,3.43350409]
[1746649970093,1.0080077,598.44,597.9,2.24750409]
[1746649973198,1.0080077,598.44,597.9,1.51750409]
[1746649973493,1.0080077,598.43,597.9,1.51750409]
[1746649973895,0.29090787,598.61,597.9,1.51750409]
[1746649974094,1.26862631,598.6,597.9,1.51750409]
[1746649974294,1.26862631,598.59,597.9,1.51750409]
[1746649974494,1.26862631,598.58,597.9,1.51750409]
[1746649974699,1.26862631,598.57,597.9,1.51750409]
[1746649974994,1.26862631,598.56,597.9,1.51750409]
[1746649975198,1.26862631,598.55,597.9,1.51750409]
[1746649975398,1.26862631,598.54,597.9,1.51750409]
[1746649975700,2.27686007,598.53,597.9,2.38150409]
[1746649976001,1.26862631,598.52,597.9,2.38150409]
[1746649976199,2.27686007,598.51,597.9,2.38150409]
[1746649976499,1.26862631,598.5,597.9,2.38150409]
[1746649976698,1.26862631,598.49,597.9,2.38150409]
[1746649976897,1.26862631,598.48,597.9,2.38150409]
[1746649977201,1.00823376,598.48,597.9,2.38150409]
[1746649977400,1.2681899,598.47,597.9,2.38150409]
[1746649977600,1.00823376,598.46,597.9,2.38150409]
[1746649978201,0.3338508,599.07,597.9,2.38150409]
[1746649978396,1.5750119,599.06,597.9,2.38150409]
[1746649978601,0.29088599,598.69,597.9,2.38150409]
[1746649978801,2.27616196,598.68,597.9,2.38150409]
[1746649979002,1.26809489,598.67,597.9,2.38150409]
[1746649979201,2.27616196,598.66,597.9,2.38150409]
[1746649979401,1.26809489,598.65,597.9,2.38150409]
[1746649979597,1.26809489,598.64,597.9,2.38150409]
[1746649979798,1.26809489,598.63,597.9,2.38150409]
[1746649979999,1.26809489,598.62,597.9,2.38150409]
[1746649980200,2.27616196,598.61,597.9,2.38150409]
[1746649980402,1.26809489,598.6,597.9,2.38150409]
[1746649980699,2.27616196,598.59,597.9,2.38150409]
[1746649980897,1.26809489,598.58,597.9,2.38150409]
[1746649981102,1.26809489,598.57,597.9,2.38150409]
[1746649981299,1.26809489,598.56,597.9,2.38150409]
[1746649981500,1.26809489,598.55,597.9,2.38150409]
[1746649981698,1.26809489,598.54,597.9,2.38150409]
[1746649981900,1.00806707,598.55,597.9,2.38150409]
[1746649982103,1.26728039,598.54,597.9,2.38150409]
[1746649982301,1.00806707,598.54,597.9,2.38150409]
[1746649982506,1.26736807,598.53,597.9,2.38150409]
[1746649982701,1.00806707,598.53,597.9,2.38150409]
[1746649982904,1.26739091,598.52,597.9,2.38150409]
[1746649983105,1.26739091,598.51,597.9,2.38150409]
[1746649983307,1.00806707,598.52,597.9,2.38150409]
[1746649983504,2.27552531,598.51,597.9,2.38150409]
[1746649983704,1.00806707,598.51,597.9,2.38150409]
[1746649983902,1.26925463,598.5,597.9,2.38150409]
[1746649984108,1.00806707,598.51,597.9,2.38150409]
[1746649984402,2.27730677,598.5,597.9,2.38150409]
[1746649984607,1.2692397,598.49,597.9,2.38150409]
[1746649984810,2.27737052,598.48,597.9,2.38150409]
[1746649985103,2.27737052,598.47,597.9,2.38150409]
[1746649985308,1.26930345,598.46,597.9,2.38150409]
[1746649985508,1.00806707,598.46,597.9,2.38150409]
[1746649986007,2.27821169,598.45,597.9,2.38150409]
[1746649986208,1.00806707,598.45,597.9,2.38150409]
[1746649986509,1.00806707,598.44,597.9,2.38150409]
[1746649986703,1.00806707,598.43,597.9,2.38150409]
[1746649986904,1.00806707,598.42,597.9,2.38150409]
[1746649987303,1.00806707,598.41,597.9,2.38150409]
[1746649987804,1.00806707,598.4,597.9,2.38150409]
[1746649988202,0.3338508,599.07,597.9,2.38150409]
[1746649988404,1.27172787,599.06,597.9,2.38150409]
[1746649988606,0.29090787,598.63,597.9,2.38150409]
[1746649988804,1.27172787,598.62,597.9,2.38150409]
[1746649989004,1.27172787,598.61,597.9,2.38150409]
[1746649989209,2.28159665,598.6,597.9,2.38150409]
[1746649989412,1.27172787,598.59,597.9,2.38150409]
[1746649989611,1.27237502,598.58,597.9,2.38150409]
[1746649989910,1.27237502,598.57,597.9,2.38150409]
[1746649990210,2.2822438,598.56,597.9,2.38150409]
[1746649990510,1.27237502,598.55,597.9,2.38150409]
[1746649990807,2.28259971,598.54,597.9,2.38150409]
[1746649991111,1.27273093,598.53,597.9,2.38150409]
[1746649991304,2.28259971,598.52,597.9,2.38150409]
[1746649991508,1.27273093,598.51,597.9,2.38150409]
[1746649991711,1.27273093,598.5,597.9,2.38150409]
[1746649992012,1.27273093,598.49,597.9,2.38150409]
[1746649992211,1.27273093,598.48,597.9,2.38150409]
[1746649992406,2.28259971,598.47,597.9,2.38150409]
[1746649992610,1.27293355,598.46,597.9,2.38150409]
[1746649992811,2.28280058,598.45,597.9,2.38150409]
[1746649993011,1.2729318,598.44,597.9,2.38150409]
[1746649993311,2.28280058,598.43,597.9,2.38150409]
[1746649993512,1.2729318,598.42,597.9,2.38150409]
[1746649993706,1.2729318,598.41,597.9,2.38150409]
[1746649993906,1.00986878,598.42,597.9,2.38150409]
[1746649994110,1.00986878,598.4,597.9,2.38150409]
[1746649994314,1.00986878,598.39,597.9,2.38150409]
[1746649994812,1.00986878,598.38,597.9,2.38150409]
[1746649995308,1.00986878,598.37,597.9,2.38150409]
[1746649995709,1.00986878,598.36,597.9,2.38150409]
[1746649996114,0.29090544,598.63,597.9,2.38150409]
[1746649996315,1.27380698,598.62,597.9,2.38150409]
[1746649996517,1.27380698,598.61,597.9,2.38150409]
[1746649996717,2.2857567,598.6,597.9,2.38150409]
[1746649996917,1.27380698,598.59,597.9,2.38150409]
[1746649997116,1.27380698,598.58,597.9,2.38150409]
[1746649997314,2.2857567,598.57,597.9,2.38150409]
[1746649997617,2.2857567,598.56,597.9,2.38150409]
[1746649997910,1.27380698,598.55,597.9,2.38150409]
[1746649998115,1.27380698,598.54,597.9,2.38150409]
[1746649998316,1.27380698,598.53,597.9,2.38150409]
[1746649998615,1.27380698,598.52,597.9,3.33350409]
[1746649998815,1.27380698,598.51,597.9,3.33350409]
[1746649999017,2.2857567,598.5,597.9,3.33350409]
[1746649999215,1.27380698,598.49,597.9,3.33350409]
[1746649999415,2.2857567,598.48,597.9,3.33350409]
[1746649999617,1.27380698,598.47,597.9,3.33350409]
[1746649999814,1.27380698,598.46,597.9,3.33350409]
[1746650000114,1.27380698,598.45,597.9,3.33350409]
[1746650000311,2.2857567,598.44,597.9,3.33350409]
[1746650000515,1.27380698,598.43,597.9,2.46950409]
[1746650000713,2.2857567,598.42,597.9,2.46950409]
[1746650000915,2.2857567,598.41,597.9,2.46950409]
[1746650001111,1.27380698,598.4,597.9,1.28650409]
[1746650001415,2.2857567,598.39,597.9,1.28650409]
[1746650001616,1.27380698,598.38,597.9,1.28650409]
[1746650001915,1.27380698,598.37,597.9,1.28650409]
[1746650002216,2.2857567,598.36,597.9,1.28650409]
[1746650002416,2.2857567,598.35,597.9,1.28650409]
[1746650002615,1.27380698,598.34,597.9,1.28650409]
[1746650002813,1.27380698,598.33,597.9,1.28650409]
[1746650003111,2.2857567,598.32,597.9,1.28650409]
[1746650003316,2.2857567,598.31,597.9,1.28650409]
[1746650003516,1.27380698,598.3,597.9,1.28650409]
[1746650003716,1.27380698,598.29,597.9,1.28650409]
[1746650003917,2.2857567,598.28,597.9,1.28650409]
[1746650004119,1.01194972,598.28,597.9,1.28650409]
[1746650004315,1.01194972,598.27,597.9,1.28650409]
[1746650005218,1.01194972,598.26,597.9,1.28650409]
[1746650005719,2.28714101,598.25,597.9,1.28650409]
[1746650005916,1.01194972,598.25,597.9,1.28650409]
[1746650006420,1.01194972,598.24,597.9,1.28650409]
[1746650007022,1.01194972,598.23,597.9,1.28650409]
[1746650008116,1.01194972,598.22,597.9,1.28650409]
[1746650008617,0.29094314,598.56,597.9,1.28650409]
[1746650008821,1.27453418,598.55,597.9,1.28650409]
[1746650009022,1.27453418,598.54,597.9,1.28650409]
[1746650009215,2.28708881,598.53,597.9,1.28650409]
[1746650009419,1.27449661,598.52,597.9,1.28650409]
[1746650009622,2.28708881,598.51,597.9,1.28650409]
[1746650009821,1.27449661,598.5,597.9,1.28650409]
[1746650010019,2.28708881,598.49,597.9,1.28650409]
[1746650010215,1.27449661,598.48,597.9,1.28650409]
[1746650010420,1.27449661,598.47,597.9,1.28650409]
[1746650010718,1.27449661,598.46,597.9,1.28650409]
[1746650010918,1.27449661,598.45,597.9,1.28650409]
[1746650011121,1.27449661,598.44,597.9,1.28650409]
[1746650011322,1.27449661,598.43,597.9,1.28650409]
[1746650011516,1.27449661,598.42,597.9,1.28650409]
[1746650011715,1.27449661,598.41,597.9,1.28650409]
[1746650011922,2.28708881,598.4,597.9,1.28650409]
[1746650012121,1.27449661,598.39,597.9,1.28650409]
[1746650012323,1.27449661,598.38,597.9,1.28650409]
[1746650012517,1.27449661,598.37,597.9,1.28650409]
[1746650012816,1.27449661,598.36,597.9,1.28650409]
[1746650013115,1.27449661,598.35,597.9,1.28650409]
[1746650013318,2.28708881,598.34,597.9,1.28650409]
[1746650013518,1.27449661,598.33,597.9,1.28650409]
[1746650013716,2.28708881,598.32,597.9,1.28650409]
[1746650013920,1.27449661,598.31,597.9,1.28650409]
[1746650014120,1.27449661,598.3,597.9,1.28650409]
[1746650014416,2.28708881,598.29,597.9,1.28650409]
[1746650014620,1.0125922,598.29,597.9,1.28650409]
[1746650014919,1.0125922,598.28,597.9,1.28650409]
[1746650015623,1.0125922,598.27,597.9,1.28650409]
[1746650015824,1.0125922,598.26,597.9,1.28650409]
[1746650016220,1.0125922,598.25,597.9,1.28650409]
[1746650016726,0.29095165,598.51,597.9,1.28650409]
[1746650016926,1.27445239,598.5,597.9,1.28650409]
[1746650017126,1.27445239,598.49,597.9,1.28650409]
[1746650017326,1.27445239,598.48,597.9,1.28650409]
[1746650017527,2.28678297,598.47,597.9,1.28650409]
[1746650017826,1.27445239,598.46,597.9,1.28650409]
[1746650018026,2.28678297,598.45,597.9,1.28650409]
[1746650018226,1.27445239,598.44,597.9,1.28650409]
[1746650018526,1.27504057,598.43,597.9,1.28650409]
[1746650018726,2.28737115,598.42,597.9,1.28650409]
[1746650018927,1.27504057,598.41,597.9,1.28650409]
[1746650019127,1.27504057,598.4,597.9,1.28650409]
[1746650019327,2.28737115,598.39,597.9,1.28650409]
[1746650019525,1.27504057,598.38,597.9,1.28650409]
[1746650019728,1.27504057,598.37,597.9,1.28650409]
[1746650020028,2.28737115,598.36,597.9,1.28650409]
[1746650020227,1.27504057,598.35,597.9,1.28650409]
[1746650020424,2.28737115,598.34,597.9,1.28650409]
[1746650020628,2.28737115,598.33,597.9,1.28650409]
[1746650020829,2.28737115,598.32,597.9,1.28650409]
[1746650021031,2.28737115,598.31,597.9,1.28650409]
[1746650021230,1.27504057,598.3,597.9,1.28650409]
[1746650021430,1.27504057,598.29,597.9,1.28650409]
[1746650021627,1.27504057,598.28,597.9,1.28650409]
[1746650021930,1.01233058,598.29,597.9,1.28650409]
[1746650022126,1.27590402,598.28,597.9,1.28650409]
[1746650022330,1.01233058,598.28,597.9,1.28650409]
[1746650023033,1.01233058,598.27,597.9,1.28650409]
[1746650023333,1.01233058,598.26,597.9,1.28650409]
[1746650024134,1.01233058,598.25,597.9,1.28650409]
[1746650024634,0.3338508,599.07,597.9,1.28650409]
[1746650024935,0.2909553,598.51,597.9,1.28650409]
[1746650025134,2.28847803,598.5,597.9,1.28650409]
[1746650025337,1.27577952,598.49,597.9,1.28650409]
[1746650025634,1.27577952,598.48,597.9,1.28650409]
[1746650025835,1.27577952,598.47,597.9,1.28650409]
[1746650026135,1.27577952,598.46,597.9,1.28650409]
[1746650026335,1.27577952,598.45,597.9,1.28650409]
[1746650026630,2.28847803,598.44,597.9,0.33450409]
[1746650026834,1.27577952,598.43,597.9,0.33450409]
[1746650027130,1.27577952,598.42,597.9,0.33450409]
[1746650027335,2.28847803,598.41,597.9,0.33450409]
[1746650027529,1.27577952,598.4,597.9,0.33450409]
[1746650027732,1.27577952,598.39,597.9,0.33450409]
[1746650027936,1.27577952,598.38,597.9,0.33450409]
[1746650028137,2.28847803,598.37,597.9,0.33450409]
[1746650028331,1.27577952,598.36,597.9,0.33450409]
[1746650028530,1.27577952,598.35,597.9,0.33450409]
[1746650028830,2.28847803,598.34,597.9,0.33450409]
[1746650029130,1.27577952,598.33,597.9,0.33450409]
[1746650029330,1.27577952,598.32,597.9,0.33450409]
[1746650029635,1.27584773,598.31,597.9,0.33450409]
[1746650029835,1.27584773,598.3,597.9,0.33450409]
[1746650030031,1.01269851,598.31,597.9,0.33450409]
[1746650030032,2.28854624,598.29,597.9,0.33450409]
[1746650030336,0.3338508,599.07,597.9,0.33450409]
[1746650030337,1.01269851,598.28,597.9,0.33450409]
[1746650031038,1.01269851,598.27,597.9,0.33450409]
[1746650031438,1.01269851,598.26,597.9,0.33450409]
[1746650032135,1.01269851,598.25,597.9,0.33450409]
[1746650032733,0.2909626,598.51,597.9,0.33450409]
[1746650032935,1.27613486,598.5,597.9,0.33450409]
[1746650033136,2.29053619,598.49,597.9,0.33450409]
[1746650033339,1.27632645,598.48,597.9,0.33450409]
[1746650033541,1.01440133,598.49,597.9,0.33450409]
[1746650033734,1.27638798,598.48,597.9,0.33450409]
[1746650033935,1.01440133,598.49,597.9,0.33450409]
[1746650034135,1.27638801,598.48,597.9,0.33450409]
[1746650034339,1.01440133,598.49,597.9,0.33450409]
[1746650034840,1.27637357,598.48,597.9,0.33450409]
[1746650035039,1.27637357,598.47,597.9,0.33450409]
[1746650035240,1.27637357,598.46,597.9,0.33450409]
[1746650035438,1.27637357,598.45,597.9,0.33450409]
[1746650035638,2.29059019,598.44,597.9,0.33450409]
[1746650035842,1.27618886,598.43,597.9,0.33450409]
[1746650036137,1.27618886,598.42,597.9,0.33450409]
[1746650036439,2.29059019,598.41,597.9,0.33450409]
[1746650036639,1.27618886,598.4,597.9,0.33450409]
[1746650036843,1.27618886,598.39,597.9,0.33450409]
[1746650037043,2.29059019,598.38,597.9,0.33450409]
[1746650037244,1.27618886,598.37,597.9,0.33450409]
[1746650037438,2.29059019,598.36,597.9,0.33450409]
[1746650037639,1.27618886,598.35,597.9,0.33450409]
[1746650037940,1.27618886,598.34,597.9,0.33450409]
[1746650038139,1.27618886,598.33,597.9,0.33450409]
[1746650038339,1.27618886,598.32,597.9,0.33450409]
[1746650038641,2.29059019,598.31,597.9,0.33450409]
[1746650038945,1.27618886,598.3,597.9,0.33450409]
[1746650039140,2.29059019,598.29,597.9,0.33450409]
[1746650039338,1.27618886,598.28,597.9,0.33450409]
[1746650039543,1.01440133,598.27,597.9,0.33450409]
[1746650040041,1.01440133,598.26,597.9,0.33450409]
[1746650040446,1.01440133,598.25,597.9,0.33450409]
[1746650041243,0.2909699,598.51,597.9,0.33450409]
[1746650041449,1.27674206,598.5,597.9,0.33450409]
[1746650041649,2.2904847,598.49,597.9,0.33450409]
[1746650041949,1.27673988,598.48,597.9,0.33450409]
[1746650042143,1.27673988,598.47,597.9,0.33450409]
[1746650042347,1.27673988,598.46,597.9,0.33450409]
[1746650042543,1.27673988,598.45,597.9,0.33450409]
[1746650042743,2.2904847,598.44,597.9,0.33450409]
[1746650042949,1.27673988,598.43,597.9,0.33450409]
[1746650043146,2.2904847,598.42,597.9,0.33450409]
[1746650043346,1.27673988,598.41,597.9,0.33450409]
[1746650043551,1.27673988,598.4,597.9,0.33450409]
[1746650043750,1.27673988,598.39,597.9,0.33450409]
[1746650043946,1.27673988,598.38,597.9,0.33450409]
[1746650044148,2.2904847,598.37,597.9,0.33450409]